Cogmind - Beta 10.2 @@@ ROGUE MODE // 2022.03.02 @ 11:34:14 Player: mogwok Result: Destroyed by G-34 Mercenary with Small Laser Performance ------------- Evolutions (0) 0 Regions Visited (1) 200 Robots Destroyed (3) 15 Value Destroyed (115) 115 Prototype IDs (0) 0 Alien Tech Used (0) 0 Bonus (0) 0 TOTAL SCORE: 330 Bonus ------- None Cogmind --------- Core Integrity 0/250 Matter 267/300 Energy 125/250 System Corruption 0% Temperature Cool (15) Movement Walking (120) Location -10/Materials Parts ------- > --- POWER (1) -------- Ion Engine > --- PROPULSION (2) --- Aluminum Leg Aluminum Leg > --- UTILITY (2) ------ Small Storage Unit Sensor Array > --- WEAPON (2) ------- Light Assault Rifle Light Assault Rifle > --- INVENTORY (6) ---- Aluminum Leg Wheel Wheel Heat Sink High-capacity Battery (277) Peak State ------------ > --- POWER ------------ Ion Engine > --- PROPULSION ------- Light Treads Light Treads > --- UTILITY ---------- Small Storage Unit Sensor Array > --- WEAPON ----------- Small Laser Light Assault Rifle > --- INVENTORY -------- Ion Engine Aluminum Leg Aluminum Leg Wheel Wheel Light Assault Rifle [Rating: 7] Favorites ----------- Power Ion Engine Engine Ion Engine Propulsion Light Treads Treads Light Treads Leg Aluminum Leg Utility Small Storage Unit Device Sensor Array Storage Small Storage Unit Weapon Light Assault Rifle Energy Gun Small Laser Ballistic Gun Light Assault Rifle Build | -11 -10 ------- Run | Scr Mat Slots Evolved . | . . Power . | . . Propulsion . | . . Utility . | . . Weapon . | . . Parts Attached 17 | 6 11 Power 3 | 1 2 Engine 3 | 1 2 Core . | . . Reactor . | . . Propulsion 5 | 2 3 Treads 2 | 2 . Leg 3 | . 3 Wheel . | . . Hover . | . . Flight . | . . Utility 3 | 1 2 Device 2 | . 2 Storage 1 | 1 . Processor . | . . Hackware . | . . Protection . | . . Artifact . | . . Weapon 6 | 2 4 Energy Gun 2 | 1 1 Energy Cannon . | . . Ballistic Gun 4 | 1 3 Ballistic Cannon . | . . Launcher . | . . Special Weapon . | . . Impact Weapon . | . . Slashing Weapon . | . . Piercing Weapon . | . . Special Melee Weapon . | . . Unidentified Prototypes . | . . Parts Lost 8 | . 8 Power 1 | . 1 Propulsion 2 | . 2 Utility 1 | . 1 Weapon 4 | . 4 Highest Loss Streak 6 | . 6 Average Slot Usage (%) 80 | . 80 Engine 14 | . 14 Treads 15 | . 15 Leg 11 | . 11 Device 8 | . 8 Storage 14 | . 14 Energy Gun 6 | . 6 Ballistic Gun 8 | . 8 Naked Turns . | . . Heaviest Build 12 | 11 12 Greatest Support 40 | 40 40 Greatest Overweight (x) 3 | 3 2 Average Overweight (x) . | . . Largest Inventory Capacity 6 | 6 6 Average Capacity 5 | 5 6 Most Carried 6 | 6 6 Average Carried 5 | 4 5 Final Capacity 6 | 6 6 Final Carried 6 | 6 5 Class Distribution -------------------- 100% | Mutant Dominant Class ---------------- Mutant | -10/Materials Resources | -11 -10 ----------- Run | Scr Mat Matter Collected 333 | 222 111 Remotely . | . . Salvage Created 155 | . 155 Parts 9 | . 9 Haulers Intercepted . | . . Recyclers Shooed . | . . Parts Field Recycled . | . . Retrieved Matter . | . . Parts Self-Destructed . | . . Prevented . | . . Kills | -11 -10 ------- Run | Scr Mat Combat Hostiles Destroyed 3 | . 3 Melee 2 | . 2 Guns 1 | . 1 Classes Destroyed 1 | . 1 Grunt 3 | . 3 Best Kill Streak 2 | . 2 Combat Bots Only 2 | . 2 Max Kills in Single Turn 1 | . 1 Gunslinging . | . . Exploded . | . . Melee 1 | . 1 Uniques/NPCs Destroyed . | . . Combat | -11 -10 -------- Run | Scr Mat Damage Taken 1061 | . 1061 Core 255 | . 255 Absorbed by Shields . | . . Core Remaining (%) 100 | 100 . Volleys Fired 38 | . 38 Largest 2 | . 2 Hottest 60 | . 60 Shots Fired 58 | . 58 Gun 58 | . 58 Cannon . | . . Launcher . | . . Special . | . . Kinetic 40 | . 40 Thermal 18 | . 18 Explosive . | . . Electromagnetic . | . . Robot Hit Streak 10 | . 10 Robot Miss Streak 1 | . 1 Penetration Max . | . . Secondary Targets . | . . Shots Hit Robots 40 | . 40 Core Hits 17 | . 17 Critical Hits . | . . Critical Kills . | . . Critical Parts Destroyed . | . . Melee Attacks . | . . Impact . | . . Slashing . | . . Piercing . | . . Sneak Attacks . | . . Combat Hostiles . | . . Follow-up Attacks . | . . Damage Inflicted 415 | . 415 Guns 377 | . 377 Cannons . | . . Explosions . | . . Melee . | . . Ramming 38 | . 38 Kinetic 201 | . 201 Thermal 176 | . 176 Explosive . | . . Electromagnetic . | . . Impact . | . . Slashing . | . . Piercing . | . . Highest Corruption . | . . Average Corruption . | . . Corruption Purged . | . . Overload Shots . | . . Overflow Damage . | . . Projectiles . | . . Explosions . | . . Melee . | . . Knockbacks 1 | . 1 Impact 1 | . 1 Kinetic . | . . Secondary . | . . Self-Inflicted Damage 6 | . 6 Shots . | . . Rammed 18 | . 18 Targets Rammed 23 | . 23 Kicked 5 | . 5 Crushed . | . . Highest Temperature 74 | . 74 Average Temperature 26 | . 26 Received Heat Transfer 594 | . 594 Siege Activations . | . . Robots Corrupted . | . . Combat Hostiles . | . . Parts Fried . | . . Impact Corruptions . | . . Robots Melted . | . . Combat Hostiles . | . . Parts Melted . | . . Heat Transferred 400 | . 400 Parts Sabotaged . | . . Parts Stolen . | . . Parts Stripped . | . . Power Chain Reactions . | . . Missiles Intercepted . | . . Alert | -11 -10 ------- Run | Scr Mat Peak Influence 70 | . 70 Initial . | . . Average 18 | . 21 Maximum Alert Level . | . . Low Security (%) 100 | 100 100 Level 1 . | . . Level 2 . | . . Level 3 . | . . Level 4 . | . . Level 5 . | . . High Security . | . . Max Security . | . . Squads Dispatched 2 | . 2 Investigation 1 | . 1 Extermination . | . . Reinforcement 1 | . 1 Assault . | . . Garrison . | . . Intercept . | . . Construction Impeded . | . . Haulers Reinforced . | . . Stealth | -11 -10 --------- Run | Scr Mat Distress Signals . | . . Communications Jammed . | . . Distress Signals . | . . Times Spotted 12 | . 12 Peak Tracking Total 4 | . 4 Tactical Retreats 2 | . 2 Traps | -11 -10 ------- Run | Scr Mat Traps Triggered 1 | . 1 Indirectly . | . . Trap Hack Attempts . | . . Triggered . | . . Disarmed . | . . Reprogrammed . | . . Reused . | . . Traps Extracted . | . . Installed . | . . Triggered . | . . Machines | -11 -10 ---------- Run | Scr Mat Machines Disabled . | . . Max in Single Turn . | . . Machines Sabotaged . | . . Garrisons Compromised . | . . Overloaded Fab Kills . | . . Fab Network Shutdowns . | . . Hacking | -11 -10 --------- Run | Scr Mat Machines Accessed 4 | . 4 Terminals 4 | . 4 Fabricators . | . . Repair Stations . | . . Recycling Units . | . . Scanalyzers . | . . Garrison Access . | . . Total Hacks 8 | . 8 Successful 2 | . 2 Failed 6 | . 6 Catastrophic . | . . Database Lockouts . | . . Manual 5 | . 5 Terminals 8 | . 8 Fabricators . | . . Repair Stations . | . . Recycling Units . | . . Scanalyzers . | . . Garrison Access . | . . Terminal Hacks 2 | . 2 Record 1 | . 1 Locate Traps 1 | . 1 Fabricator Hacks . | . . Repair Station Hacks . | . . Recycling Unit Hacks . | . . Scanalyzer . | . . Garrison Access Hacks . | . . Unauthorized Hacks . | . . Terminals . | . . Fabricators . | . . Repair Stations . | . . Recycling Units . | . . Scanalyzers . | . . Garrison Access . | . . Data Cores Recovered . | . . Used . | . . Hacking Detections 4 | . 4 Full Trace Events . | . . Feedback Events . | . . Feedback Blocked . | . . Robot Schematics Acquired . | . . Robots Built . | . . Matter . | . . Time . | . . Total Robot Build Rating . | . . Part Schematics Acquired . | . . Parts Built . | . . Matter . | . . Time . | . . Total Part Build Rating . | . . Parts Repaired . | . . Time . | . . Parts Recycled . | . . Recycled Matter . | . . Retrieved Matter . | . . Retrieved Components . | . . Parts Scanalyzed . | . . Part Schematics Acquired . | . . Parts Damaged . | . . Bothacking | -11 -10 ------------ Run | Scr Mat Used RIF Installer . | . . Robots Hacked . | . . Non-combat . | . . Combat . | . . Robot Hacks Applied . | . . Relay Couplers Released . | . . Robots Rewired . | . . Allies Hacked . | . . Hacks Repelled . | . . Allies | -11 -10 -------- Run | Scr Mat Total Allies . | . . Largest Group . | . . Highest-Rated Group . | . . Highest-Rated Ally . | . . Total Orders . | . . Ally Attacks . | . . Total Damage . | . . Kills . | . . Allies Corrupted . | . . Allies Melted . | . . Intel | -11 -10 ------- Run | Scr Mat Robot Analysis Total . | . . Derelict Logs Recovered . | . . Drone Launches . | . . Drone Recoveries . | . . Exploration | -11 -10 ------------- Run | Scr Mat Turns Passed 589 | 74 515 Spaces Moved 288 | 49 239 Core 31 | 30 1 Treads 142 | 19 123 Legs 115 | . 115 Wheels . | . . Hover . | . . Flight . | . . Fastest Speed 50 | 50 120 Average Speed 137 | 121 140 Slowest Speed 200 | 200 160 Overloaded Moves . | . . Propulsion Burnouts . | . . Robots Hopped . | . . Cave-ins Triggered . | . . Exploration Rate (%) 26 | 4 48 Regions Visited 1 Branch Regions . Pre-discovered Areas . | . . Known Exits Taken . | . . Unknown Exits Taken 1 | 1 . Scrap Searched . | . . Spaces Dug . | . . Terrain Destroyed . | . . Melee . | . . Projectile . | . . AOE . | . . Terrain Rammed . | . . Walls Destroyed . | . . Machines Disabled . | . . Actions | -11 -10 --------- Run | Scr Mat Total 419 | 62 357 Wait 40 | . 40 Move 287 | 48 239 Hop . | . . Pick Up 11 | 8 3 Fast Attach 10 | 4 6 Attach 6 | 2 4 Detach 1 | . 1 Swap 1 | . 1 Drop 2 | . 2 Fire 38 | . 38 Melee . | . . Ram . | . . Kick 13 | . 13 Crush 10 | . 10 Escape Stasis . | . . Rewire . | . . Trap . | . . Miscellaneous . | . . Route ------- -11/Scrapyard -10/Materials History --------- Turn | Location | Event 27 | -11/Scrapyard | Discovered new exit (range 14) 75 | -11/Scrapyard | Entered Materials 315 | -10/Materials | Build established: Mutant 347 | -10/Materials | Core integrity fell below 50% 406 | -10/Materials | Core integrity fell below 20% 418 | -10/Materials | Lost 6 parts (2n1u3w) 590 | -10/Materials | Destroyed by G-34 Mercenary with Small Laser Last Messages --------------- 1x Alarm Trap Map updated. 00508_ Connecting with Terminal... 00526_ Acquired Sensor Array. 00530_ Dropped Ion Engine. 00531_ Acquired Hcp. Battery. 00542_ R-06 Scavenger collects Ion Engine. 00553_ O-16 Technician: "IFF HANDSHAKE FAILED. SECURING TERMINAL." 00558_ ALERT: Hostiles spotted, dispatching reinforcements to Terminal M001. 00563_ Triggered Alarm Trap. 00563_ An alarm sounds. 00563_ ALERT: Alarm triggered, dispatching investigation squad. 00570_ Acquired 10 matter. 00575_ Acquired Lgt. Assault Rifle. 00576_ O-16 Technician destroyed. 00577_ Acquired Lgt. Assault Rifle. 00580_ U-05 Engineer lays Concrete. 00582_ Ion Engine destroyed. 00588_ U-05 Engineer lays Concrete. Map ----- +----------------------------------------------------+ | ??????????????????????????????????????????????? | | ??????????????????????????????????????????????? | | ????##????????????????????????????????????????? | | ???? ????????????????????????????????????????? | | ???? ????????????????????????????????????????? | | ???? ????????????????????????????????????????? | | ????# ????????????????????????????????????????? | | ????# ????????????????????????????????????????? | | ????# ??????????????????????????? ???????????? | | ##??# #?????????#######?????????# ##????????? | | T#### #????###### ########## #????????? | | # ###### #????????? | | # #????????? | | # #### #????????? | | # #??### ## ##g###+### #????????? | | # ######/######## #???????????????? | | + # #????# """ #???????????????? | | # + """ #????# g """ #???????????????? | | # # """ #????#" """ #???????????????? | | # # """ #????#"= """ #???????????????? | | # # #????#"%* #???????????????? | | # + """ #????#Tu % #???????????????? | | ##### # """ #????#" #???????????????? | | ????# # """ #????#" #???????????????? | | ????# # #????#" [ #???????????????? | | ????# ##########????# @[ #???????????????? | | ????# #?????????????#########???????????????? | | ????# #?????????????????????????????????????? | | ????# #?????????????????????????????????????? | | ????# #?????????????????????????????????????? | | ????# #?????????????????????????????????????? | | ????# "?????????????????????????????????????? | | ????# ??????????????????????????????????????? | | ????# ??????????????????????????????????????? | | ????# ??????????????????????????????????????? | | ????? ??????????????????????????????????????? | | ??????????????????????????????????????????????? | | ??????????????????????????????????????????????? | | ??????????????????????????????????????????????? | | ??????????????????????????????????????????????? | | ??????????????????????????????????????????????? | | ??????????????????????????????????????????????? | | ??????????????????????????????????????????????? | | ??????????????????????????????????????????????? | | ??????????????????????????????????????????????? | | ??????????????????????????????????????????????? | | ??????????????????????????????????????????????? | | ??????????????????????????????????????????????? | | ??????????????????????????????????????????????? | | ??????????????????????????????????????????????? | +----------------------------------------------------+ Best States ------------- Heat Dissipation 25 Energy Generation 10 Energy Capacity 250 Matter Stores 300 Matter Capacity 300 Sight Range 16 Robot Scan Range 10 Terrain Scan Density 10 Evasion (%) 40 Recoil Reduction 2 Item Schematics ----------------- None Robot Schematics ------------------ None Fabricated ------------ Nothing Alien Tech Used ----------------- None Achievements -------------- None Challenges ------------ None Game ------ Seed SystemAccelerationTorch Manual? 0 Play Time 00:10:56 Cumulative 59.7 hours Start 2022.03.02 @ 11:25:31 End 2022.03.02 @ 11:34:14 Sessions 1 Manual Loads 0 Difficulty Rogue Special Mode None Game No. 58 Rogue 58 Adventurer 0 Explorer 0 Win Type - Total 0 Types 0/0/0/0/0/0/0/0/0 Lore% 30 Gallery% 45 Achievement% 28 Wizard Run 0 Options --------- ASCII 1 Keyboard 1 Movement Numpad Keybinds 0 Fullscreen 2 Font 18/SmallcapsGlow Map View 76x50 Tactical HUD 1 Map Filters NONE Filters NONE Steam 1 RUN: f7eac7a2-10f3-4682-88fb-1ddf0ffa1367